[Event "*** SCC Grand Prix: Titled Tuesday Blitz"]
[Site "Chess.com"]
[Date "2020.09.29"]
[Round "7"]
[White "UCantHandleDenker"]
[Black "lider34"]
[Result "1-0"]
[WhiteElo "2566"]
[BlackElo "2399"]
[TimeControl "180+1"]
[EndTime "11:16:22 PDT"]
[Termination "UCantHandleDenker won by checkmate"]

1. Nf3 {[%clk 0:03:00.9]} 1... g6 {[%clk 0:02:58.9]} 2. g3 {[%clk 0:03:00.8]}
2... Bg7 {[%clk 0:02:59.8]} 3. Bg2 {[%clk 0:03:01]} 3... c5 {[%clk 0:02:59.3]}
4. O-O {[%clk 0:03:01.4]} 4... Nc6 {[%clk 0:02:59.2]} 5. c4 {[%clk 0:03:02]}
5... d6 {[%clk 0:02:59.3]} 6. Nc3 {[%clk 0:03:02.1]} 6... e5 {[%clk 0:02:58.9]}
7. d3 {[%clk 0:03:02]} 7... Nge7 {[%clk 0:02:59.2]} 8. a3 {[%clk 0:03:02.2]}
8... O-O {[%clk 0:02:58.6]} 9. Rb1 {[%clk 0:03:02.8]} 9... a5 {[%clk 0:02:58.4]}
10. Bg5 {[%clk 0:03:02.7]} 10... h6 {[%clk 0:02:56.6]} 11. Bxe7 {[%clk
0:03:02.1]} 11... Qxe7 {[%clk 0:02:46.7]} 12. Ne1 {[%clk 0:03:02.4]} 12... Be6
{[%clk 0:02:43.4]} 13. Nc2 {[%clk 0:03:02.1]} 13... Qd7 {[%clk 0:02:26.4]} 14.
b4 {[%clk 0:02:58.4]} 14... axb4 {[%clk 0:02:25.5]} 15. axb4 {[%clk 0:02:58.3]}
15... cxb4 {[%clk 0:02:23.2]} 16. Nxb4 {[%clk 0:02:56.9]} 16... Nxb4 {[%clk
0:02:23]} 17. Rxb4 {[%clk 0:02:57.5]} 17... Rfb8 {[%clk 0:02:19.9]} 18. Qb3
{[%clk 0:02:55.6]} 18... Qc7 {[%clk 0:01:56.3]} 19. Rxb7 {[%clk 0:02:42.8]}
19... Rxb7 {[%clk 0:01:54.5]} 20. Qxb7 {[%clk 0:02:42.4]} 20... Qxb7 {[%clk
0:01:53.4]} 21. Bxb7 {[%clk 0:02:42.1]} 21... Rb8 {[%clk 0:01:53.1]} 22. Bf3
{[%clk 0:02:39.9]} 22... Rb3 {[%clk 0:01:45.8]} 23. Ne4 {[%clk 0:02:29.6]} 23...
Bf8 {[%clk 0:01:42.7]} 24. Ra1 {[%clk 0:02:17.9]} 24... Kg7 {[%clk 0:01:41.7]}
25. Kg2 {[%clk 0:02:11.9]} 25... f5 {[%clk 0:01:31.6]} 26. Ra7+ {[%clk
0:02:10.5]} 26... Bf7 {[%clk 0:01:22.4]} 27. Nxd6 {[%clk 0:02:09.9]} 27... Bxd6
{[%clk 0:01:20.6]} 28. Bd5 {[%clk 0:02:10.4]} 28... g5 {[%clk 0:01:09.7]} 29.
Rxf7+ {[%clk 0:02:08.5]} 29... Kg6 {[%clk 0:01:09.6]} 30. Rd7 {[%clk 0:02:05.9]}
30... Bc5 {[%clk 0:01:07.6]} 31. Rc7 {[%clk 0:02:04.6]} 31... Bd4 {[%clk
0:01:03.6]} 32. e3 {[%clk 0:01:58.5]} 32... Bb2 {[%clk 0:00:54.8]} 33. Rb7
{[%clk 0:01:22.2]} 33... Rxb7 {[%clk 0:00:51.9]} 34. Bxb7 {[%clk 0:01:22.8]}
34... Ba3 {[%clk 0:00:43.9]} 35. d4 {[%clk 0:01:20.2]} 35... exd4 {[%clk
0:00:43.9]} 36. exd4 {[%clk 0:01:20.2]} 36... Bb2 {[%clk 0:00:44.3]} 37. d5
{[%clk 0:01:20.5]} 37... Ba3 {[%clk 0:00:42.6]} 38. Kf3 {[%clk 0:01:20]} 38...
Bc5 {[%clk 0:00:41.9]} 39. Ke2 {[%clk 0:01:20.2]} 39... h5 {[%clk 0:00:36.5]}
40. f3 {[%clk 0:01:14.8]} 40... g4 {[%clk 0:00:35.2]} 41. Bc8 {[%clk 0:01:08.7]}
41... Bd6 {[%clk 0:00:27.3]} 42. Kf2 {[%clk 0:01:03]} 42... Bc5+ {[%clk
0:00:26.7]} 43. Kg2 {[%clk 0:01:03.4]} 43... Bd6 {[%clk 0:00:26.8]} 44. f4
{[%clk 0:01:00.1]} 44... Bc5 {[%clk 0:00:25.6]} 45. h3 {[%clk 0:00:57.5]} 45...
Bd6 {[%clk 0:00:24.1]} 46. hxg4 {[%clk 0:00:57.3]} 46... hxg4 {[%clk 0:00:22.7]}
47. Kf1 {[%clk 0:00:57.9]} 47... Bc5 {[%clk 0:00:22.1]} 48. Ke2 {[%clk
0:00:58.4]} 48... Bd6 {[%clk 0:00:22]} 49. Kd3 {[%clk 0:00:55.6]} 49... Bc5
{[%clk 0:00:21.7]} 50. Be6 {[%clk 0:00:55.3]} 50... Kf6 {[%clk 0:00:21.2]} 51.
Bc8 {[%clk 0:00:47.1]} 51... Kg6 {[%clk 0:00:20.6]} 52. d6 {[%clk 0:00:39.4]}
52... Bxd6 {[%clk 0:00:19.2]} 53. Kd4 {[%clk 0:00:40]} 53... Bb4 {[%clk
0:00:18.3]} 54. c5 {[%clk 0:00:39.8]} 54... Be1 {[%clk 0:00:17.4]} 55. c6 {[%clk
0:00:40.1]} 55... Bxg3 {[%clk 0:00:16.4]} 56. Ke5 {[%clk 0:00:40.4]} 56... Bf2
{[%clk 0:00:15.9]} 57. Bxf5+ {[%clk 0:00:40.8]} 57... Kh5 {[%clk 0:00:14.5]} 58.
c7 {[%clk 0:00:40.6]} 58... g3 {[%clk 0:00:09.3]} 59. c8=Q {[%clk 0:00:40.2]}
59... g2 {[%clk 0:00:08.8]} 60. Qh8# {[%clk 0:00:39]} 1-0

[Event "*** SCC Grand Prix: Titled Tuesday Blitz"]
[Site "Chess.com"]
[Date "2020.09.29"]
[Round "7"]
[White "ljuks68"]
[Black "Shivagami"]
[Result "0-1"]
[WhiteElo "2340"]
[BlackElo "2225"]
[TimeControl "180+1"]
[EndTime "11:16:23 PDT"]
[Termination "Shivagami won on time"]

1. e4 {[%clk 0:02:46.4]} 1... Nc6 {[%clk 0:02:57.4]} 2. Nf3 {[%clk 0:02:45.6]}
2... d6 {[%clk 0:02:57]} 3. d4 {[%clk 0:02:45.4]} 3... Nf6 {[%clk 0:02:57]} 4.
Nc3 {[%clk 0:02:43.9]} 4... Bg4 {[%clk 0:02:57.5]} 5. Be3 {[%clk 0:02:42]} 5...
e5 {[%clk 0:02:56.7]} 6. Bb5 {[%clk 0:02:38.2]} 6... a6 {[%clk 0:02:46.6]} 7.
Bxc6+ {[%clk 0:02:37.7]} 7... bxc6 {[%clk 0:02:46.7]} 8. dxe5 {[%clk 0:02:37.9]}
8... Bxf3 {[%clk 0:02:42.1]} 9. Qxf3 {[%clk 0:02:36]} 9... dxe5 {[%clk
0:02:42.5]} 10. Qf5 {[%clk 0:02:24.3]} 10... Qe7 {[%clk 0:02:29.7]} 11. Bg5
{[%clk 0:02:20.6]} 11... h6 {[%clk 0:02:14.5]} 12. Bxf6 {[%clk 0:02:19.7]} 12...
Qxf6 {[%clk 0:02:14.2]} 13. Qxf6 {[%clk 0:02:19.4]} 13... gxf6 {[%clk
0:02:13.5]} 14. O-O-O {[%clk 0:02:19.8]} 14... Bc5 {[%clk 0:02:07.9]} 15. Rd2
{[%clk 0:02:08.4]} 15... Ke7 {[%clk 0:02:04.8]} 16. Rhd1 {[%clk 0:02:03.7]}
16... Rhd8 {[%clk 0:02:02]} 17. Na4 {[%clk 0:02:02.2]} 17... Ba7 {[%clk
0:01:54.6]} 18. c3 {[%clk 0:01:58.2]} 18... Rd6 {[%clk 0:01:48.6]} 19. c4 {[%clk
0:01:38.2]} 19... Bd4 {[%clk 0:01:39.3]} 20. c5 {[%clk 0:01:35.8]} 20... Rd7
{[%clk 0:01:39.3]} 21. Kc2 {[%clk 0:01:32.7]} 21... Rad8 {[%clk 0:01:37.4]} 22.
f3 {[%clk 0:01:32.4]} 22... Ke6 {[%clk 0:01:32.5]} 23. Kb3 {[%clk 0:01:22.6]}
23... Rb8+ {[%clk 0:01:29]} 24. Kc4 {[%clk 0:01:17.6]} 24... Rb5 {[%clk
0:01:23.4]} 25. Rd3 {[%clk 0:00:56.5]} 25... Rd8 {[%clk 0:01:19.1]} 26. Rb3
{[%clk 0:00:52.3]} 26... Rdb8 {[%clk 0:01:18.6]} 27. Rdd3 {[%clk 0:00:36.2]}
27... a5 {[%clk 0:01:14.6]} 28. a3 {[%clk 0:00:35.4]} 28... f5 {[%clk
0:00:55.9]} 29. g3 {[%clk 0:00:16.1]} 29... Kf6 {[%clk 0:00:49]} 30. h4 {[%clk
0:00:13.4]} 30... h5 {[%clk 0:00:47.1]} 31. exf5 {[%clk 0:00:10.8]} 31... Kxf5
{[%clk 0:00:47.2]} 32. g4+ {[%clk 0:00:10.6]} 32... hxg4 {[%clk 0:00:44.1]} 33.
fxg4+ {[%clk 0:00:10.7]} 33... Kxg4 {[%clk 0:00:44.7]} 34. h5 {[%clk 0:00:08.8]}
34... Kxh5 {[%clk 0:00:43.9]} 35. Rh3+ {[%clk 0:00:07.6]} 35... Kg5 {[%clk
0:00:39.8]} 36. Rbg3+ {[%clk 0:00:07.4]} 36... Kf5 {[%clk 0:00:40.4]} 37. Rg2
{[%clk 0:00:06.2]} 37... Ke6 {[%clk 0:00:30.8]} 38. Rh6+ {[%clk 0:00:05.5]}
38... f6 {[%clk 0:00:30.3]} 39. Rgg6 {[%clk 0:00:03.6]} 39... Rf8 {[%clk
0:00:30.1]} 40. Rg7 {[%clk 0:00:03]} 40... Rf7 {[%clk 0:00:27.1]} 41. Rhh7
{[%clk 0:00:02.7]} 41... Rxg7 {[%clk 0:00:26.7]} 42. Rxg7 {[%clk 0:00:03.2]}
42... Rb7 {[%clk 0:00:24.7]} 43. Rg8 {[%clk 0:00:02.9]} 43... f5 {[%clk
0:00:17.1]} 44. Rg6+ {[%clk 0:00:02.7]} 44... Kf7 {[%clk 0:00:15.5]} 45. Rxc6
{[%clk 0:00:02.5]} 45... f4 {[%clk 0:00:15.3]} 46. Rh6 {[%clk 0:00:01.8]} 46...
f3 {[%clk 0:00:14.4]} 0-1

[Event "*** SCC Grand Prix: Titled Tuesday Blitz"]
[Site "Chess.com"]
[Date "2020.09.29"]
[Round "7"]
[White "moventog"]
[Black "mapleaff"]
[Result "0-1"]
[WhiteElo "2234"]
[BlackElo "2368"]
[TimeControl "180+1"]
[EndTime "11:16:24 PDT"]
[Termination "mapleaff won on time"]

1. d4 {[%clk 0:03:00.9]} 1... Nf6 {[%clk 0:02:58.2]} 2. Nc3 {[%clk 0:03:00.2]}
2... d5 {[%clk 0:02:57.5]} 3. Bf4 {[%clk 0:02:59.4]} 3... Bf5 {[%clk 0:02:56.9]}
4. Qd2 {[%clk 0:02:58.1]} 4... c6 {[%clk 0:02:55.4]} 5. f3 {[%clk 0:02:58.2]}
5... e6 {[%clk 0:02:53.2]} 6. e3 {[%clk 0:02:56.5]} 6... h5 {[%clk 0:02:48]} 7.
Nge2 {[%clk 0:02:55.7]} 7... Nbd7 {[%clk 0:02:43.7]} 8. h4 {[%clk 0:02:51.7]}
8... Bb4 {[%clk 0:02:36.5]} 9. a3 {[%clk 0:02:47.5]} 9... Ba5 {[%clk 0:02:36.2]}
10. Nc1 {[%clk 0:02:44.7]} 10... b5 {[%clk 0:02:30.1]} 11. Nd3 {[%clk
0:02:39.2]} 11... Bb6 {[%clk 0:02:29.7]} 12. Ne2 {[%clk 0:02:33.9]} 12... a5
{[%clk 0:02:17.4]} 13. Bg5 {[%clk 0:02:23.5]} 13... Bc7 {[%clk 0:02:11.8]} 14.
Nef4 {[%clk 0:02:15.3]} 14... Qb8 {[%clk 0:02:01]} 15. Kf2 {[%clk 0:02:06.9]}
15... Nh7 {[%clk 0:01:58.8]} 16. Nh3 {[%clk 0:01:54.4]} 16... Nxg5 {[%clk
0:01:53.9]} 17. hxg5 {[%clk 0:01:47]} 17... Bg3+ {[%clk 0:01:28.2]} 18. Kg1
{[%clk 0:01:39.9]} 18... Nb6 {[%clk 0:01:28.2]} 19. Nc5 {[%clk 0:01:31.4]} 19...
Nc4 {[%clk 0:01:21.8]} 20. Qc1 {[%clk 0:01:26.5]} 20... b4 {[%clk 0:01:10.5]}
21. a4 {[%clk 0:01:21.7]} 21... O-O {[%clk 0:01:08]} 22. b3 {[%clk 0:01:20.8]}
22... Nb6 {[%clk 0:01:01.5]} 23. Bd3 {[%clk 0:01:19.2]} 23... g6 {[%clk
0:00:58.9]} 24. Qd2 {[%clk 0:01:06.9]} 24... Re8 {[%clk 0:00:53]} 25. f4 {[%clk
0:01:04.7]} 25... Nc8 {[%clk 0:00:44.6]} 26. Nf2 {[%clk 0:01:01.5]} 26... Bxf2+
{[%clk 0:00:44.2]} 27. Qxf2 {[%clk 0:00:58.4]} 27... Nd6 {[%clk 0:00:44.4]} 28.
Kh2 {[%clk 0:00:47.7]} 28... Nb7 {[%clk 0:00:39]} 29. Nd7 {[%clk 0:00:30.2]}
29... Qc7 {[%clk 0:00:35]} 30. Nf6+ {[%clk 0:00:30.3]} 30... Kg7 {[%clk
0:00:35.3]} 31. Nxe8+ {[%clk 0:00:28.9]} 31... Rxe8 {[%clk 0:00:36.2]} 32. Rhe1
{[%clk 0:00:26]} 32... Nd6 {[%clk 0:00:35.5]} 33. Rac1 {[%clk 0:00:25.7]} 33...
Ne4 {[%clk 0:00:34]} 34. Bxe4 {[%clk 0:00:25.4]} 34... Bxe4 {[%clk 0:00:34.4]}
35. c3 {[%clk 0:00:25.1]} 35... bxc3 {[%clk 0:00:32.6]} 36. Rxc3 {[%clk
0:00:24.9]} 36... Qb7 {[%clk 0:00:30.3]} 37. Rec1 {[%clk 0:00:22.6]} 37... Rc8
{[%clk 0:00:24.8]} 38. Qd2 {[%clk 0:00:20]} 38... Qb4 {[%clk 0:00:23.6]} 39. Qe1
{[%clk 0:00:19.7]} 39... Qd6 {[%clk 0:00:22.7]} 40. Qd1 {[%clk 0:00:18.8]} 40...
h4 {[%clk 0:00:19]} 41. Rc5 {[%clk 0:00:18.6]} 41... f6 {[%clk 0:00:15.5]} 42.
Qd2 {[%clk 0:00:18.5]} 42... fxg5 {[%clk 0:00:15.1]} 43. Kg1 {[%clk 0:00:08.8]}
43... h3 {[%clk 0:00:14]} 44. g3 {[%clk 0:00:07.4]} 44... h2+ {[%clk 0:00:14.1]}
45. Qxh2 {[%clk 0:00:06]} 45... Rh8 {[%clk 0:00:14.4]} 46. Qxh8+ {[%clk
0:00:02.9]} 46... Kxh8 {[%clk 0:00:14.6]} 47. Rxc6 {[%clk 0:00:03.8]} 47... Qb4
{[%clk 0:00:14.8]} 0-1

[Event "*** SCC Grand Prix: Titled Tuesday Blitz"]
[Site "Chess.com"]
[Date "2020.09.29"]
[Round "7"]
[White "GM_LOADING"]
[Black "Arjun2002"]
[Result "1-0"]
[WhiteElo "2523"]
[BlackElo "2674"]
[TimeControl "180+1"]
[EndTime "11:16:27 PDT"]
[Termination "GM_LOADING won by resignation"]

1. e4 {[%clk 0:03:00.9]} 1... c5 {[%clk 0:02:59.3]} 2. Nf3 {[%clk 0:03:01.2]}
2... Nc6 {[%clk 0:02:59.6]} 3. d4 {[%clk 0:03:01.8]} 3... cxd4 {[%clk
0:03:00.5]} 4. Nxd4 {[%clk 0:03:02.7]} 4... Nf6 {[%clk 0:03:00.8]} 5. Nc3 {[%clk
0:03:03]} 5... h5 {[%clk 0:03:01.1]} 6. h3 {[%clk 0:02:59.1]} 6... e5 {[%clk
0:02:47.3]} 7. Ndb5 {[%clk 0:02:56.9]} 7... d6 {[%clk 0:02:47.6]} 8. Bg5 {[%clk
0:02:57.2]} 8... a6 {[%clk 0:02:47.7]} 9. Na3 {[%clk 0:02:57.3]} 9... Be6 {[%clk
0:02:41.3]} 10. Nc4 {[%clk 0:02:48.8]} 10... Rc8 {[%clk 0:02:40.3]} 11. Ne3
{[%clk 0:02:42]} 11... Nd4 {[%clk 0:02:23.5]} 12. Bd3 {[%clk 0:02:40.9]} 12...
Be7 {[%clk 0:02:21.5]} 13. O-O {[%clk 0:02:40.6]} 13... b5 {[%clk 0:01:57.1]}
14. Bxf6 {[%clk 0:02:27.9]} 14... Bxf6 {[%clk 0:01:56.7]} 15. a4 {[%clk
0:02:28.6]} 15... b4 {[%clk 0:01:48.3]} 16. Ncd5 {[%clk 0:02:27.9]} 16... a5
{[%clk 0:01:41.6]} 17. c3 {[%clk 0:02:28.1]} 17... bxc3 {[%clk 0:01:40.8]} 18.
bxc3 {[%clk 0:02:29]} 18... Nc6 {[%clk 0:01:40.6]} 19. Bb5 {[%clk 0:02:29.4]}
19... Bg5 {[%clk 0:01:31.8]} 20. Nc4 {[%clk 0:01:20.3]} 20... O-O {[%clk
0:01:21.8]} 21. Ncb6 {[%clk 0:01:05.2]} 21... g6 {[%clk 0:00:50.9]} 22. Nxc8
{[%clk 0:01:00.9]} 22... Qxc8 {[%clk 0:00:50.6]} 23. Qd3 {[%clk 0:00:49.7]}
23... Ne7 {[%clk 0:00:44.6]} 24. Bc4 {[%clk 0:00:43.1]} 24... Nxd5 {[%clk
0:00:38.9]} 25. Bxd5 {[%clk 0:00:43.5]} 25... Bd7 {[%clk 0:00:39.3]} 26. Qg3
{[%clk 0:00:35]} 26... Qd8 {[%clk 0:00:36.7]} 27. h4 {[%clk 0:00:35.3]} 27...
Bxh4 {[%clk 0:00:22.1]} 28. Qxg6+ {[%clk 0:00:34.3]} 28... Kh8 {[%clk
0:00:22.5]} 29. Qh6+ {[%clk 0:00:22.4]} 29... Kg8 {[%clk 0:00:22.7]} 30. Qxd6
{[%clk 0:00:23]} 30... Bf6 {[%clk 0:00:15.6]} 31. Rad1 {[%clk 0:00:20.4]} 31...
Kg7 {[%clk 0:00:15.3]} 32. Bc6 {[%clk 0:00:18.1]} 32... Bxc6 {[%clk 0:00:15.2]}
33. Qxc6 {[%clk 0:00:18.6]} 33... Qb8 {[%clk 0:00:13.3]} 34. Rd6 {[%clk
0:00:16.5]} 34... Be7 {[%clk 0:00:12.1]} 35. Rd3 {[%clk 0:00:15.7]} 35... Rc8
{[%clk 0:00:11.7]} 36. Rg3+ {[%clk 0:00:15.2]} 36... Kf8 {[%clk 0:00:10.5]} 37.
Qh6+ {[%clk 0:00:15]} 37... Ke8 {[%clk 0:00:11]} 38. Rg8+ {[%clk 0:00:15.1]}
38... Kd7 {[%clk 0:00:11]} 39. Rd1+ {[%clk 0:00:15.7]} 39... Kc7 {[%clk
0:00:09.1]} 40. Rxc8+ {[%clk 0:00:15.8]} 40... Qxc8 {[%clk 0:00:09.5]} 41. Qg7
{[%clk 0:00:15.2]} 41... Qe6 {[%clk 0:00:09.3]} 42. Rd5 {[%clk 0:00:14.8]} 42...
Bd6 {[%clk 0:00:07]} 43. c4 {[%clk 0:00:12.8]} 43... Qe8 {[%clk 0:00:06.4]} 44.
c5 {[%clk 0:00:12.3]} 44... Bf8 {[%clk 0:00:06.5]} 45. Qxe5+ {[%clk 0:00:12.5]}
45... Qxe5 {[%clk 0:00:06.9]} 46. Rxe5 {[%clk 0:00:13.4]} 46... Kc6 {[%clk
0:00:07.6]} 47. Rxh5 {[%clk 0:00:13.5]} 47... Bxc5 {[%clk 0:00:08.2]} 48. Rf5
{[%clk 0:00:13.9]} 48... Kd6 {[%clk 0:00:06.7]} 49. Rxf7 {[%clk 0:00:13.8]}
49... Ke6 {[%clk 0:00:07.3]} 50. Rf5 {[%clk 0:00:13.8]} 50... Bb4 {[%clk
0:00:07]} 51. g4 {[%clk 0:00:14.4]} 1-0

[Event "*** SCC Grand Prix: Titled Tuesday Blitz"]
[Site "Chess.com"]
[Date "2020.09.29"]
[Round "7"]
[White "Playgood28"]
[Black "mortngabriel"]
[Result "0-1"]
[WhiteElo "2327"]
[BlackElo "2461"]
[TimeControl "180+1"]
[EndTime "11:16:27 PDT"]
[Termination "mortngabriel won by resignation"]

1. d4 {[%clk 0:03:00.9]} 1... Nf6 {[%clk 0:02:59.5]} 2. c4 {[%clk 0:03:00.4]}
2... c5 {[%clk 0:02:59.8]} 3. d5 {[%clk 0:02:59.7]} 3... b5 {[%clk 0:02:59.8]}
4. Qc2 {[%clk 0:02:59.6]} 4... g6 {[%clk 0:02:54.1]} 5. e4 {[%clk 0:02:59.3]}
5... d6 {[%clk 0:02:53.4]} 6. Nf3 {[%clk 0:02:58.7]} 6... Bg7 {[%clk 0:02:53.2]}
7. h3 {[%clk 0:02:58.5]} 7... O-O {[%clk 0:02:53.1]} 8. Nc3 {[%clk 0:02:57.1]}
8... b4 {[%clk 0:02:52]} 9. Nd1 {[%clk 0:02:56.2]} 9... e6 {[%clk 0:02:51.9]}
10. Bd3 {[%clk 0:02:55.3]} 10... exd5 {[%clk 0:02:51.1]} 11. exd5 {[%clk
0:02:55]} 11... Re8+ {[%clk 0:02:49.7]} 12. Ne3 {[%clk 0:02:54.6]} 12... Nbd7
{[%clk 0:02:31]} 13. O-O {[%clk 0:02:52.2]} 13... Nh5 {[%clk 0:02:30.4]} 14. Ng4
{[%clk 0:02:43.6]} 14... f5 {[%clk 0:02:19.1]} 15. Nh6+ {[%clk 0:02:12.5]} 15...
Bxh6 {[%clk 0:02:07.1]} 16. Bxh6 {[%clk 0:02:10.5]} 16... Ne5 {[%clk 0:02:08]}
17. Be2 {[%clk 0:01:51.1]} 17... Nf6 {[%clk 0:01:54.3]} 18. Bg5 {[%clk
0:01:46.7]} 18... Kg7 {[%clk 0:01:47.2]} 19. Qd2 {[%clk 0:01:28.9]} 19... Ne4
{[%clk 0:01:44.4]} 20. Bh6+ {[%clk 0:01:16]} 20... Kg8 {[%clk 0:01:44.5]} 21.
Qf4 {[%clk 0:01:09.9]} 21... a5 {[%clk 0:01:35.2]} 22. Rfe1 {[%clk 0:01:08]}
22... Ba6 {[%clk 0:01:33.8]} 23. b3 {[%clk 0:01:07.7]} 23... a4 {[%clk
0:01:33.9]} 24. Bf1 {[%clk 0:00:57.1]} 24... Qf6 {[%clk 0:01:14.2]} 25. Ng5
{[%clk 0:00:49.8]} 25... Nxg5 {[%clk 0:01:02]} 26. Qxg5 {[%clk 0:00:41.4]} 26...
Qxg5 {[%clk 0:00:52.7]} 27. Bxg5 {[%clk 0:00:40.9]} 27... Kg7 {[%clk 0:00:52.6]}
28. Bf4 {[%clk 0:00:31.5]} 28... Nf7 {[%clk 0:00:50.1]} 29. h4 {[%clk 0:00:30]}
29... Bb7 {[%clk 0:00:41]} 30. Rxe8 {[%clk 0:00:27.9]} 30... Rxe8 {[%clk
0:00:40.3]} 31. Bd2 {[%clk 0:00:27.6]} 31... Ra8 {[%clk 0:00:28.7]} 32. Re1
{[%clk 0:00:24.2]} 32... axb3 {[%clk 0:00:26.5]} 33. axb3 {[%clk 0:00:23.8]}
33... Kf6 {[%clk 0:00:27]} 34. Re6+ {[%clk 0:00:20.4]} 34... Kg7 {[%clk
0:00:27.5]} 35. Re7 {[%clk 0:00:20.3]} 35... Bc8 {[%clk 0:00:26.5]} 36. Bf4
{[%clk 0:00:18.2]} 36... Kf6 {[%clk 0:00:24.5]} 37. Rc7 {[%clk 0:00:15.8]} 37...
h6 {[%clk 0:00:21.5]} 38. f3 {[%clk 0:00:13.4]} 38... g5 {[%clk 0:00:21.1]} 39.
hxg5+ {[%clk 0:00:12.8]} 39... hxg5 {[%clk 0:00:22]} 40. Rxf7+ {[%clk
0:00:12.3]} 40... Kxf7 {[%clk 0:00:20.7]} 41. Bxd6 {[%clk 0:00:13.2]} 41... Ra3
{[%clk 0:00:19]} 42. Bxc5 {[%clk 0:00:12.7]} 42... Rxb3 {[%clk 0:00:19.4]} 43.
Bd4 {[%clk 0:00:09]} 43... Rb1 {[%clk 0:00:17.1]} 44. c5 {[%clk 0:00:08]} 44...
Ba6 {[%clk 0:00:16.4]} 45. c6 {[%clk 0:00:04.7]} 45... Rxf1+ {[%clk 0:00:16.4]}
46. Kh2 {[%clk 0:00:04.4]} 46... Rd1 {[%clk 0:00:15.8]} 0-1

[Event "*** SCC Grand Prix: Titled Tuesday Blitz"]
[Site "Chess.com"]
[Date "2020.09.29"]
[Round "7"]
[White "Parhamov"]
[Black "Alexander_Moskalenko"]
[Result "1/2-1/2"]
[WhiteElo "2962"]
[BlackElo "2840"]
[TimeControl "180+1"]
[EndTime "11:16:29 PDT"]
[Termination "Game drawn by agreement"]

1. e4 {[%clk 0:03:00.9]} 1... c6 {[%clk 0:02:59.7]} 2. d4 {[%clk 0:03:00.3]}
2... d5 {[%clk 0:02:59]} 3. Nc3 {[%clk 0:03:01.2]} 3... dxe4 {[%clk 0:02:57.6]}
4. Nxe4 {[%clk 0:03:02.1]} 4... Nd7 {[%clk 0:02:58.5]} 5. Bc4 {[%clk 0:02:57.1]}
5... Ngf6 {[%clk 0:02:58.1]} 6. Ng5 {[%clk 0:02:55.9]} 6... e6 {[%clk
0:02:57.3]} 7. N1f3 {[%clk 0:02:53.9]} 7... h6 {[%clk 0:02:54.5]} 8. Nh3 {[%clk
0:02:53.3]} 8... g5 {[%clk 0:02:54.8]} 9. Nd2 {[%clk 0:02:28]} 9... Nb6 {[%clk
0:02:49]} 10. c3 {[%clk 0:02:28.2]} 10... Nxc4 {[%clk 0:02:43.8]} 11. Nxc4
{[%clk 0:02:28.1]} 11... c5 {[%clk 0:02:44.7]} 12. O-O {[%clk 0:02:24.6]} 12...
cxd4 {[%clk 0:02:41]} 13. cxd4 {[%clk 0:02:21.9]} 13... Be7 {[%clk 0:02:33.7]}
14. Ne5 {[%clk 0:02:22]} 14... Qd5 {[%clk 0:02:29.5]} 15. f4 {[%clk 0:02:21.6]}
15... g4 {[%clk 0:02:20.5]} 16. Nxg4 {[%clk 0:02:19.2]} 16... Nxg4 {[%clk
0:02:20]} 17. Qxg4 {[%clk 0:02:19.7]} 17... Qxd4+ {[%clk 0:02:20.9]} 18. Kh1
{[%clk 0:02:19.3]} 18... Bd7 {[%clk 0:02:20.4]} 19. Rd1 {[%clk 0:02:11.1]} 19...
Qe4 {[%clk 0:02:20.6]} 20. Nf2 {[%clk 0:02:10.2]} 20... Qf5 {[%clk 0:02:14.1]}
21. Qxf5 {[%clk 0:02:07.5]} 21... exf5 {[%clk 0:02:15]} 22. Nd3 {[%clk 0:02:08]}
22... O-O-O {[%clk 0:02:03.8]} 23. Be3 {[%clk 0:02:08.1]} 23... Kb8 {[%clk
0:02:04.2]} 24. Rac1 {[%clk 0:02:03.9]} 24... Be6 {[%clk 0:02:04.3]} 25. a3
{[%clk 0:02:00.5]} 25... h5 {[%clk 0:02:04]} 26. h3 {[%clk 0:01:58.3]} 26... h4
{[%clk 0:02:03.1]} 27. Kh2 {[%clk 0:01:55]} 27... Rhg8 {[%clk 0:02:03.6]} 28.
Ne5 {[%clk 0:01:52.3]} 28... Ka8 {[%clk 0:01:59.2]} 29. b4 {[%clk 0:01:49.4]}
29... Bf6 {[%clk 0:01:50.1]} 30. Rxd8+ {[%clk 0:01:26.9]} 30... Rxd8 {[%clk
0:01:51]} 31. Bf2 {[%clk 0:01:27.3]} 31... a6 {[%clk 0:01:45.8]} 32. Kg1 {[%clk
0:01:22.7]} 32... Kb8 {[%clk 0:01:45.1]} 33. Re1 {[%clk 0:01:18.5]} 33... Rd2
{[%clk 0:01:40.9]} 34. Bb6 {[%clk 0:01:15.1]} 34... Bxe5 {[%clk 0:01:30.8]} 35.
Rxe5 {[%clk 0:01:11.7]} 35... Kc8 {[%clk 0:01:31.3]} 36. Bf2 {[%clk 0:01:08.9]}
36... Kd7 {[%clk 0:01:28.6]} 37. a4 {[%clk 0:01:08.2]} 37... f6 {[%clk
0:01:22.1]} 38. Ra5 {[%clk 0:01:05.5]} 38... Bd5 {[%clk 0:01:18]} 39. Rc5 {[%clk
0:01:01.3]} 39... Be4 {[%clk 0:01:16.7]} 40. a5 {[%clk 0:00:58.8]} 40... Rd1+
{[%clk 0:01:15.9]} 41. Kh2 {[%clk 0:00:58.5]} 41... Rd2 {[%clk 0:01:16.8]} 42.
Kg1 {[%clk 0:00:58.9]} 42... Ke6 {[%clk 0:01:11]} 43. Rc8 {[%clk 0:00:56.2]}
43... Rd1+ {[%clk 0:01:09.7]} 44. Kh2 {[%clk 0:00:56.3]} 44... Rd2 {[%clk
0:01:10.3]} 45. Kg1 {[%clk 0:00:56.6]} 45... Rb2 {[%clk 0:01:10.5]} 46. Rf8
{[%clk 0:00:51.3]} 46... Rb1+ {[%clk 0:01:06.7]} 47. Kh2 {[%clk 0:00:51.1]}
47... Rb2 {[%clk 0:01:07.6]} 48. Rxf6+ {[%clk 0:00:47.5]} 48... Kxf6 {[%clk
0:01:05.3]} 49. Bd4+ {[%clk 0:00:47.2]} 49... Kg6 {[%clk 0:01:06]} 50. Bxb2
{[%clk 0:00:47.3]} 50... Kh5 {[%clk 0:01:06.7]} 51. Bf6 {[%clk 0:00:26.6]} 51...
Bc6 {[%clk 0:01:06.1]} 52. Kg1 {[%clk 0:00:26.5]} 52... Be4 {[%clk 0:01:05.9]}
53. Kf2 {[%clk 0:00:26.2]} 53... Bd5 {[%clk 0:01:06.4]} 54. g3 {[%clk
0:00:22.6]} 54... hxg3+ {[%clk 0:01:06.6]} 55. Kxg3 {[%clk 0:00:23.5]} 55... Bc4
{[%clk 0:01:05.9]} 56. Kf2 {[%clk 0:00:23.3]} 56... Bd5 {[%clk 0:01:06]} 57. Ke3
{[%clk 0:00:23.5]} 57... Be4 {[%clk 0:01:06.5]} 58. Kd4 {[%clk 0:00:23.6]} 58...
Kg6 {[%clk 0:01:06.8]} 59. Ke5 {[%clk 0:00:23.2]} 59... Kh5 {[%clk 0:01:06.8]}
60. h4 {[%clk 0:00:23.1]} 60... Bb1 {[%clk 0:01:05.6]} 61. Bg5 {[%clk 0:00:22]}
61... Be4 {[%clk 0:01:05]} 62. Kd6 {[%clk 0:00:22.9]} 62... Bf3 {[%clk 0:01:04]}
63. Kc7 {[%clk 0:00:23.1]} 63... Be4 {[%clk 0:01:04.1]} 64. Kb6 {[%clk
0:00:23.2]} 64... Bf3 {[%clk 0:01:01.9]} 65. b5 {[%clk 0:00:22.5]} 65... axb5
{[%clk 0:01:01.6]} 66. Kxb5 {[%clk 0:00:23.4]} 66... Be4 {[%clk 0:01:01.4]} 67.
Kc5 {[%clk 0:00:23.7]} 67... Bf3 {[%clk 0:01:01.6]} 68. Kd6 {[%clk 0:00:23.4]}
68... Bh1 {[%clk 0:01:02]} 69. Kc7 {[%clk 0:00:23.8]} 69... Be4 {[%clk
0:01:01.7]} 70. Kb6 {[%clk 0:00:24.2]} 70... Kg6 {[%clk 0:01:02]} 71. a6 {[%clk
0:00:24]} 71... bxa6 {[%clk 0:01:01.8]} 72. Kxa6 {[%clk 0:00:23.8]} 72... Kh5
{[%clk 0:01:02.7]} 1/2-1/2